[Event "*** Titled Tuesday Blitz"]
[Site "Chess.com"]
[Date "2021.03.30"]
[Round "4"]
[White "Redzishchess"]
[Black "onetowin"]
[Result "0-1"]
[WhiteElo "2365"]
[BlackElo "2029"]
[TimeControl "180+1"]
[EndTime "10:38:28 PDT"]
[Termination "onetowin won by resignation"]

1. e4 {[%clk 0:03:00.9]} 1... c5 {[%clk 0:02:59.7]} 2. Nf3 {[%clk 0:02:59]} 2...
e6 {[%clk 0:02:59.8]} 3. g3 {[%clk 0:02:55]} 3... Nc6 {[%clk 0:02:58.6]} 4. Bg2
{[%clk 0:02:54.9]} 4... d5 {[%clk 0:02:58.5]} 5. exd5 {[%clk 0:02:54.5]} 5...
exd5 {[%clk 0:02:57.3]} 6. d4 {[%clk 0:02:54.8]} 6... Nf6 {[%clk 0:02:55.3]} 7.
O-O {[%clk 0:02:54.4]} 7... cxd4 {[%clk 0:02:54.8]} 8. Nxd4 {[%clk 0:02:54.3]}
8... Be7 {[%clk 0:02:49.4]} 9. Nc3 {[%clk 0:02:33.1]} 9... O-O {[%clk 0:02:47]}
10. Bf4 {[%clk 0:02:19.2]} 10... a6 {[%clk 0:02:31.2]} 11. h3 {[%clk 0:02:02.8]}
11... Qb6 {[%clk 0:02:14.7]} 12. Nb3 {[%clk 0:00:58.5]} 12... d4 {[%clk
0:02:03.1]} 13. Ne4 {[%clk 0:00:58.6]} 13... Bf5 {[%clk 0:01:42.9]} 14. Nxf6+
{[%clk 0:00:42.2]} 14... Bxf6 {[%clk 0:01:42.1]} 15. g4 {[%clk 0:00:40.4]} 15...
Be6 {[%clk 0:01:23.4]} 16. Re1 {[%clk 0:00:27.8]} 16... Bh4 {[%clk 0:01:14.7]}
17. Bd6 {[%clk 0:00:21.5]} 17... Bxb3 {[%clk 0:00:54.9]} 18. Bxf8 {[%clk
0:00:11.8]} 18... d3 {[%clk 0:00:55.2]} 19. Rf1 {[%clk 0:00:09.2]} 19... Bxc2
{[%clk 0:00:54.9]} 20. Qd2 {[%clk 0:00:04.6]} 20... Rxf8 {[%clk 0:00:55]} 21. g5
{[%clk 0:00:05]} 21... Qc5 {[%clk 0:00:48.9]} 22. Qe3 {[%clk 0:00:02.3]} 22...
Qxe3 {[%clk 0:00:45.7]} 23. fxe3 {[%clk 0:00:03.2]} 23... Bxg5 {[%clk 0:00:46]}
24. Kf2 {[%clk 0:00:02.4]} 24... Re8 {[%clk 0:00:40.6]} 25. Rfe1 {[%clk
0:00:01.9]} 25... Bh4+ {[%clk 0:00:39.8]} 0-1

[Event "*** Titled Tuesday Blitz"]
[Site "Chess.com"]
[Date "2021.03.30"]
[Round "4"]
[White "AsaHoffmann"]
[Black "nicolochessit"]
[Result "1-0"]
[WhiteElo "2397"]
[BlackElo "2227"]
[TimeControl "180+1"]
[EndTime "10:38:29 PDT"]
[Termination "AsaHoffmann won by checkmate"]

1. d4 {[%clk 0:02:59.1]} 1... Nf6 {[%clk 0:02:59.5]} 2. Bg5 {[%clk 0:02:56.1]}
2... e6 {[%clk 0:02:59.3]} 3. Nd2 {[%clk 0:02:54.8]} 3... d5 {[%clk 0:02:57.2]}
4. e3 {[%clk 0:02:54.6]} 4... c5 {[%clk 0:02:55.7]} 5. c3 {[%clk 0:02:52.7]}
5... Nc6 {[%clk 0:02:53.4]} 6. f4 {[%clk 0:02:52.5]} 6... h6 {[%clk 0:02:48.3]}
7. Bh4 {[%clk 0:02:52]} 7... Be7 {[%clk 0:02:38.1]} 8. Bd3 {[%clk 0:02:51.5]}
8... cxd4 {[%clk 0:02:28.3]} 9. exd4 {[%clk 0:02:51.1]} 9... a6 {[%clk
0:02:19.5]} 10. Ngf3 {[%clk 0:02:39.7]} 10... Nh5 {[%clk 0:02:05.4]} 11. Bxe7
{[%clk 0:02:36.5]} 11... Qxe7 {[%clk 0:02:06.3]} 12. g3 {[%clk 0:02:35.1]} 12...
O-O {[%clk 0:02:00.6]} 13. Ne5 {[%clk 0:02:34.3]} 13... Nf6 {[%clk 0:01:56.2]}
14. O-O {[%clk 0:02:31.8]} 14... Qd6 {[%clk 0:01:42.3]} 15. Qe2 {[%clk
0:02:30.6]} 15... b5 {[%clk 0:01:34]} 16. Rae1 {[%clk 0:02:28.6]} 16... b4
{[%clk 0:01:28.5]} 17. Ndf3 {[%clk 0:02:21.2]} 17... Bb7 {[%clk 0:00:56.8]} 18.
f5 {[%clk 0:02:16]} 18... Nd7 {[%clk 0:00:40.6]} 19. Nxf7 {[%clk 0:02:12]} 19...
Rxf7 {[%clk 0:00:33.6]} 20. fxe6 {[%clk 0:02:11.9]} 20... Re7 {[%clk 0:00:32.5]}
21. Nh4 {[%clk 0:01:57.6]} 21... Rf8 {[%clk 0:00:16.5]} 22. Nf5 {[%clk
0:01:55.7]} 22... Rxf5 {[%clk 0:00:16.3]} 23. Rxf5 {[%clk 0:01:53.4]} 23... Nf6
{[%clk 0:00:15.2]} 24. Rxf6 {[%clk 0:01:51.6]} 24... gxf6 {[%clk 0:00:14.8]} 25.
Qg4+ {[%clk 0:01:50.6]} 25... Rg7 {[%clk 0:00:14.7]} 26. Qf5 {[%clk 0:01:45.3]}
26... Ne7 {[%clk 0:00:14]} 27. Qxf6 {[%clk 0:01:43.9]} 27... Bc8 {[%clk
0:00:12.7]} 28. Re5 {[%clk 0:01:38.2]} 28... Nc6 {[%clk 0:00:11.4]} 29. Re3
{[%clk 0:01:30.4]} 29... Ne7 {[%clk 0:00:08.9]} 30. Qxh6 {[%clk 0:01:29.1]}
30... bxc3 {[%clk 0:00:08]} 31. bxc3 {[%clk 0:01:28.7]} 31... a5 {[%clk
0:00:05.9]} 32. Kg2 {[%clk 0:01:25.8]} 32... Qa3 {[%clk 0:00:04.5]} 33. Rf3
{[%clk 0:01:16.4]} 33... Qb2+ {[%clk 0:00:03.7]} 34. Kh3 {[%clk 0:01:15]} 34...
Qb8 {[%clk 0:00:01.5]} 35. Rf7 {[%clk 0:01:06]} 35... Rxf7 {[%clk 0:00:01.6]}
36. Bg6 {[%clk 0:01:00.7]} 36... Rh7 {[%clk 0:00:01.9]} 37. Qxh7+ {[%clk
0:00:59.7]} 37... Kf8 {[%clk 0:00:02.2]} 38. Qf7# {[%clk 0:00:59.6]} 1-0

[Event "*** Titled Tuesday Blitz"]
[Site "Chess.com"]
[Date "2021.03.30"]
[Round "4"]
[White "volunteers1998"]
[Black "Piotrek1979"]
[Result "1-0"]
[WhiteElo "2187"]
[BlackElo "2314"]
[TimeControl "180+1"]
[EndTime "10:38:29 PDT"]
[Termination "volunteers1998 won by resignation"]

1. e4 {[%clk 0:03:00.9]} 1... c5 {[%clk 0:02:58.4]} 2. Nf3 {[%clk 0:03:00.7]}
2... Nc6 {[%clk 0:02:57.1]} 3. Bb5 {[%clk 0:02:59.3]} 3... g6 {[%clk 0:02:49.2]}
4. O-O {[%clk 0:02:59]} 4... Bg7 {[%clk 0:02:48]} 5. Re1 {[%clk 0:02:58.8]} 5...
Nf6 {[%clk 0:02:23.5]} 6. e5 {[%clk 0:02:58.5]} 6... Nd5 {[%clk 0:02:22.9]} 7.
Nc3 {[%clk 0:02:57.3]} 7... Nc7 {[%clk 0:02:19.8]} 8. Bxc6 {[%clk 0:02:57]} 8...
dxc6 {[%clk 0:02:20.7]} 9. Ne4 {[%clk 0:02:54]} 9... Ne6 {[%clk 0:02:20.2]} 10.
d3 {[%clk 0:02:42.5]} 10... h6 {[%clk 0:02:13.1]} 11. b3 {[%clk 0:02:38.2]}
11... b6 {[%clk 0:02:08.4]} 12. Bb2 {[%clk 0:02:34.6]} 12... O-O {[%clk
0:02:04.9]} 13. a4 {[%clk 0:02:34]} 13... a5 {[%clk 0:02:03.6]} 14. Qe2 {[%clk
0:02:23.8]} 14... Bb7 {[%clk 0:01:48.5]} 15. Qe3 {[%clk 0:02:16.4]} 15... Qd7
{[%clk 0:01:40.2]} 16. Rad1 {[%clk 0:01:59.8]} 16... Rad8 {[%clk 0:01:38.6]} 17.
Ng3 {[%clk 0:01:33.8]} 17... Nd4 {[%clk 0:01:33.1]} 18. Rc1 {[%clk 0:01:26.2]}
18... Qd5 {[%clk 0:01:20.5]} 19. Nd2 {[%clk 0:01:10.7]} 19... Rde8 {[%clk
0:00:42.1]} 20. Nc4 {[%clk 0:01:08]} 20... Qd8 {[%clk 0:00:41.6]} 21. Ne4 {[%clk
0:00:56.3]} 21... Kh7 {[%clk 0:00:35.1]} 22. f4 {[%clk 0:00:52.5]} 22... Bc8
{[%clk 0:00:32.2]} 23. h3 {[%clk 0:00:48.3]} 23... f5 {[%clk 0:00:26.6]} 24.
exf6 {[%clk 0:00:43]} 24... exf6 {[%clk 0:00:25.9]} 25. Bxd4 {[%clk 0:00:38.1]}
25... cxd4 {[%clk 0:00:24.8]} 26. Qf2 {[%clk 0:00:37.9]} 26... f5 {[%clk
0:00:17.2]} 27. Ned6 {[%clk 0:00:37.5]} 27... Re6 {[%clk 0:00:17.1]} 28. Nxc8
{[%clk 0:00:33.1]} 28... Qxc8 {[%clk 0:00:16.9]} 29. Rxe6 {[%clk 0:00:30.8]}
29... Qe8 {[%clk 0:00:17.5]} 30. Rxe8 {[%clk 0:00:28.7]} 1-0

[Event "*** Titled Tuesday Blitz"]
[Site "Chess.com"]
[Date "2021.03.30"]
[Round "4"]
[White "Bacyanide"]
[Black "GMRafpig"]
[Result "1/2-1/2"]
[WhiteElo "2418"]
[BlackElo "2594"]
[TimeControl "180+1"]
[EndTime "10:38:32 PDT"]
[Termination "Game drawn by repetition"]

1. d4 {[%clk 0:03:00.9]} 1... Nf6 {[%clk 0:02:59.3]} 2. Nf3 {[%clk 0:03:00.8]}
2... e6 {[%clk 0:02:59.5]} 3. Bf4 {[%clk 0:03:00.4]} 3... c5 {[%clk 0:02:58.5]}
4. e3 {[%clk 0:03:00.4]} 4... Nc6 {[%clk 0:02:58.5]} 5. Nc3 {[%clk 0:02:59.9]}
5... cxd4 {[%clk 0:02:35.7]} 6. exd4 {[%clk 0:03:00.8]} 6... Be7 {[%clk
0:02:32.2]} 7. d5 {[%clk 0:02:48.1]} 7... exd5 {[%clk 0:02:28.8]} 8. Nxd5 {[%clk
0:02:43.9]} 8... Qa5+ {[%clk 0:02:20.6]} 9. Nc3 {[%clk 0:02:43.2]} 9... d5
{[%clk 0:02:18.9]} 10. Qd2 {[%clk 0:02:33.4]} 10... O-O {[%clk 0:02:15.2]} 11.
Bd3 {[%clk 0:02:31.4]} 11... d4 {[%clk 0:02:04.1]} 12. Ne4 {[%clk 0:02:29]}
12... Nxe4 {[%clk 0:01:59.7]} 13. Qxa5 {[%clk 0:02:24.7]} 13... Nxa5 {[%clk
0:01:59.9]} 14. Bxe4 {[%clk 0:02:24.9]} 14... Bb4+ {[%clk 0:01:57.6]} 15. Bd2
{[%clk 0:02:23.9]} 15... Re8 {[%clk 0:01:51.1]} 16. Bxb4 {[%clk 0:02:17.1]}
16... Rxe4+ {[%clk 0:01:50.1]} 17. Kd2 {[%clk 0:02:17.1]} 17... Nc6 {[%clk
0:01:32.6]} 18. Ba3 {[%clk 0:02:08.9]} 18... Bg4 {[%clk 0:01:32.5]} 19. Ng1
{[%clk 0:01:20.8]} 19... Bf5 {[%clk 0:01:20.2]} 20. Ne2 {[%clk 0:01:16.8]} 20...
Ree8 {[%clk 0:01:17.2]} 21. Rhe1 {[%clk 0:01:13.6]} 21... Rac8 {[%clk
0:01:05.8]} 22. Rac1 {[%clk 0:01:06.9]} 22... Ne5 {[%clk 0:00:59.6]} 23. b3
{[%clk 0:01:06.9]} 23... d3 {[%clk 0:00:58]} 24. Ng3 {[%clk 0:00:56.8]} 24...
Bg6 {[%clk 0:00:55.2]} 25. cxd3 {[%clk 0:00:54.8]} 25... Rcd8 {[%clk 0:00:55.2]}
26. Re3 {[%clk 0:00:46.5]} 26... Bxd3 {[%clk 0:00:50.3]} 27. Rce1 {[%clk
0:00:44.2]} 27... Be4+ {[%clk 0:00:40.6]} 28. Kc3 {[%clk 0:00:42.3]} 28... Rc8+
{[%clk 0:00:37.3]} 29. Kd4 {[%clk 0:00:40.9]} 29... Nc6+ {[%clk 0:00:35]} 30.
Kc3 {[%clk 0:00:38]} 30... Ne5+ {[%clk 0:00:33]} 31. Kd4 {[%clk 0:00:32.3]}
31... Nc6+ {[%clk 0:00:28]} 32. Kc3 {[%clk 0:00:32.3]} 32... Ne5+ {[%clk
0:00:19.1]} 1/2-1/2

[Event "*** Titled Tuesday Blitz"]
[Site "Chess.com"]
[Date "2021.03.30"]
[Round "4"]
[White "BrianEscalante"]
[Black "shnitez"]
[Result "0-1"]
[WhiteElo "2611"]
[BlackElo "2481"]
[TimeControl "180+1"]
[EndTime "10:38:35 PDT"]
[Termination "shnitez won by resignation"]

1. e4 {[%clk 0:01:46]} 1... c5 {[%clk 0:02:58.3]} 2. Nf3 {[%clk 0:01:44.5]} 2...
e6 {[%clk 0:02:57.6]} 3. d4 {[%clk 0:01:43.1]} 3... cxd4 {[%clk 0:02:58.5]} 4.
Nxd4 {[%clk 0:01:43.3]} 4... a6 {[%clk 0:02:59]} 5. Bd3 {[%clk 0:01:42.9]} 5...
Bc5 {[%clk 0:02:58.7]} 6. Nb3 {[%clk 0:01:42.8]} 6... Be7 {[%clk 0:02:59.2]} 7.
Qg4 {[%clk 0:01:42.9]} 7... g6 {[%clk 0:02:59.7]} 8. a4 {[%clk 0:01:42.4]} 8...
d6 {[%clk 0:02:52.6]} 9. Qe2 {[%clk 0:01:42.2]} 9... Nc6 {[%clk 0:02:42.3]} 10.
a5 {[%clk 0:01:39.1]} 10... Ne5 {[%clk 0:02:39]} 11. O-O {[%clk 0:01:38.6]}
11... Nf6 {[%clk 0:02:37]} 12. c4 {[%clk 0:01:31.1]} 12... Nxd3 {[%clk
0:02:32.6]} 13. Qxd3 {[%clk 0:01:30.9]} 13... O-O {[%clk 0:02:33.3]} 14. Bh6
{[%clk 0:01:30.8]} 14... Re8 {[%clk 0:02:33.4]} 15. Nc3 {[%clk 0:01:30.4]} 15...
Ng4 {[%clk 0:02:17.2]} 16. Bf4 {[%clk 0:01:30.4]} 16... Ne5 {[%clk 0:02:14.2]}
17. Qe2 {[%clk 0:01:25.3]} 17... Qc7 {[%clk 0:02:07.7]} 18. Nd2 {[%clk
0:01:14.8]} 18... Bd7 {[%clk 0:02:00.5]} 19. Rfc1 {[%clk 0:01:14.8]} 19... Rac8
{[%clk 0:01:56.9]} 20. Nd1 {[%clk 0:01:07]} 20... Nc6 {[%clk 0:01:51.6]} 21. Nb3
{[%clk 0:01:04.9]} 21... Bf6 {[%clk 0:01:42.9]} 22. c5 {[%clk 0:01:04.3]} 22...
e5 {[%clk 0:01:32.3]} 23. cxd6 {[%clk 0:00:46.9]} 23... Qxd6 {[%clk 0:01:33.2]}
24. Bg3 {[%clk 0:00:47.2]} 24... Be6 {[%clk 0:01:31.6]} 25. Qf3 {[%clk
0:00:43.2]} 25... Bxb3 {[%clk 0:01:26.4]} 26. Qxb3 {[%clk 0:00:42.8]} 26... Nd4
{[%clk 0:01:25.8]} 27. Qd3 {[%clk 0:00:42.4]} 27... Qb4 {[%clk 0:01:12.6]} 28.
Ne3 {[%clk 0:00:30]} 28... Rxc1+ {[%clk 0:01:04.3]} 29. Rxc1 {[%clk 0:00:29.5]}
29... Qxa5 {[%clk 0:01:03.6]} 30. Nd5 {[%clk 0:00:27.3]} 30... Bg7 {[%clk
0:00:43.8]} 31. h4 {[%clk 0:00:27.1]} 31... h5 {[%clk 0:00:37.7]} 32. f4 {[%clk
0:00:26.1]} 32... exf4 {[%clk 0:00:36.1]} 33. Bxf4 {[%clk 0:00:26.1]} 33... Qb5
{[%clk 0:00:28.5]} 34. Qxb5 {[%clk 0:00:24.3]} 34... axb5 {[%clk 0:00:29.1]} 35.
e5 {[%clk 0:00:16.4]} 35... Ne2+ {[%clk 0:00:28.6]} 0-1

[Event "*** Titled Tuesday Blitz"]
[Site "Chess.com"]
[Date "2021.03.30"]
[Round "4"]
[White "WPWPWP-2015"]
[Black "Fortitudine"]
[Result "1-0"]
[WhiteElo "2454"]
[BlackElo "2266"]
[TimeControl "180+1"]
[EndTime "10:38:37 PDT"]
[Termination "WPWPWP-2015 won on time"]

1. d4 {[%clk 0:03:00.9]} 1... Nf6 {[%clk 0:02:59.6]} 2. Bf4 {[%clk 0:02:58]}
2... g6 {[%clk 0:02:53.8]} 3. Nd2 {[%clk 0:02:56]} 3... d6 {[%clk 0:02:51.7]} 4.
e4 {[%clk 0:02:54.7]} 4... Bg7 {[%clk 0:02:50.3]} 5. Ngf3 {[%clk 0:02:51.3]}
5... O-O {[%clk 0:02:47.4]} 6. Bd3 {[%clk 0:02:49.8]} 6... c5 {[%clk 0:02:46.2]}
7. d5 {[%clk 0:02:47.7]} 7... e6 {[%clk 0:02:25.4]} 8. Bg5 {[%clk 0:02:37.7]}
8... exd5 {[%clk 0:02:22.5]} 9. exd5 {[%clk 0:02:33.9]} 9... h6 {[%clk 0:02:11]}
10. Bh4 {[%clk 0:02:27.6]} 10... Re8+ {[%clk 0:02:09.9]} 11. Kf1 {[%clk
0:02:26.3]} 11... g5 {[%clk 0:01:32.8]} 12. Nxg5 {[%clk 0:02:25.9]} 12... hxg5
{[%clk 0:01:33.7]} 13. Bxg5 {[%clk 0:02:25.8]} 13... Nbd7 {[%clk 0:01:17.4]} 14.
c4 {[%clk 0:02:24]} 14... Nf8 {[%clk 0:01:16.9]} 15. Qc2 {[%clk 0:02:21.2]}
15... Bg4 {[%clk 0:01:09.9]} 16. f3 {[%clk 0:02:20.1]} 16... Bh5 {[%clk
0:01:09.8]} 17. h4 {[%clk 0:02:15.8]} 17... Bg6 {[%clk 0:01:09.4]} 18. h5 {[%clk
0:02:15.5]} 18... Bxd3+ {[%clk 0:01:09.1]} 19. Qxd3 {[%clk 0:02:16]} 19... N8h7
{[%clk 0:00:59.5]} 20. Bh4 {[%clk 0:02:12.7]} 20... Qd7 {[%clk 0:00:49.2]} 21.
h6 {[%clk 0:02:11.7]} 21... Bf8 {[%clk 0:00:44.4]} 22. Kf2 {[%clk 0:02:06.9]}
22... Kh8 {[%clk 0:00:38.8]} 23. Qc3 {[%clk 0:02:03]} 23... Be7 {[%clk
0:00:35.7]} 24. Rae1 {[%clk 0:02:02.7]} 24... Rg8 {[%clk 0:00:31.7]} 25. Ne4
{[%clk 0:01:58.1]} 25... Rg6 {[%clk 0:00:26.4]} 26. g4 {[%clk 0:01:57.3]} 26...
Kg8 {[%clk 0:00:21.4]} 27. g5 {[%clk 0:01:56.4]} 27... Nxe4+ {[%clk 0:00:19.5]}
28. Rxe4 {[%clk 0:01:55.5]} 28... Bxg5 {[%clk 0:00:11.8]} 29. Bxg5 {[%clk
0:01:44.1]} 29... Rxg5 {[%clk 0:00:11.1]} 30. Qe3 {[%clk 0:01:38.9]} 30... f6
{[%clk 0:00:10.8]} 31. Re7 {[%clk 0:01:37]} 31... Qf5 {[%clk 0:00:11]} 32. Re1
{[%clk 0:01:33.1]} 32... Rf8 {[%clk 0:00:10.5]} 33. Rxb7 {[%clk 0:01:09.1]}
33... Qh3 {[%clk 0:00:10.3]} 34. Qe6+ {[%clk 0:00:53]} 34... Qxe6 {[%clk
0:00:09.5]} 35. Rxe6 {[%clk 0:00:53.9]} 1-0

[Event "*** Titled Tuesday Blitz"]
[Site "Chess.com"]
[Date "2021.03.30"]
[Round "4"]
[White "Cambek64"]
[Black "svilson23"]
[Result "1-0"]
[WhiteElo "2447"]
[BlackElo "2263"]
[TimeControl "180+1"]
[EndTime "10:38:37 PDT"]
[Termination "Cambek64 won by resignation"]

1. e4 {[%clk 0:02:58]} 1... c6 {[%clk 0:02:59.7]} 2. d4 {[%clk 0:02:56.6]} 2...
d5 {[%clk 0:03:00.3]} 3. Nc3 {[%clk 0:02:56.5]} 3... dxe4 {[%clk 0:03:00.3]} 4.
Nxe4 {[%clk 0:02:57.2]} 4... Nf6 {[%clk 0:03:01]} 5. Nxf6+ {[%clk 0:02:57.6]}
5... exf6 {[%clk 0:03:01.9]} 6. Bc4 {[%clk 0:02:57.5]} 6... Bd6 {[%clk
0:02:44.2]} 7. Qe2+ {[%clk 0:02:54.4]} 7... Be7 {[%clk 0:02:40.5]} 8. c3 {[%clk
0:02:52.6]} 8... O-O {[%clk 0:02:37.1]} 9. Nf3 {[%clk 0:02:52.5]} 9... Re8
{[%clk 0:02:32.9]} 10. O-O {[%clk 0:02:51.6]} 10... Bd6 {[%clk 0:02:20.6]} 11.
Qc2 {[%clk 0:02:49.1]} 11... Na6 {[%clk 0:02:17.4]} 12. h3 {[%clk 0:02:40]}
12... Nc7 {[%clk 0:02:12.5]} 13. Bd2 {[%clk 0:02:39.6]} 13... a5 {[%clk
0:02:08.1]} 14. a4 {[%clk 0:02:38.6]} 14... Be6 {[%clk 0:02:03.7]} 15. Bxe6
{[%clk 0:02:36.6]} 15... Nxe6 {[%clk 0:01:59.6]} 16. Qb3 {[%clk 0:02:35.1]}
16... Qc7 {[%clk 0:01:59.5]} 17. Rfe1 {[%clk 0:02:35.6]} 17... Rad8 {[%clk
0:01:43]} 18. Re2 {[%clk 0:02:35.4]} 18... c5 {[%clk 0:01:18.2]} 19. Rae1 {[%clk
0:02:28.6]} 19... c4 {[%clk 0:01:12.1]} 20. Qb5 {[%clk 0:02:26.2]} 20... Re7
{[%clk 0:01:08.3]} 21. d5 {[%clk 0:02:23.2]} 21... Nf8 {[%clk 0:00:56.2]} 22.
Rxe7 {[%clk 0:02:16.5]} 22... Bxe7 {[%clk 0:00:57.1]} 23. Re4 {[%clk 0:02:11]}
23... Rc8 {[%clk 0:00:43.4]} 24. Bf4 {[%clk 0:02:07.2]} 24... Bd6 {[%clk
0:00:41.9]} 25. Bxd6 {[%clk 0:02:06]} 25... Qxd6 {[%clk 0:00:42.4]} 26. Rxc4
{[%clk 0:01:57.3]} 26... Rd8 {[%clk 0:00:41.2]} 27. Rd4 {[%clk 0:01:51.7]} 27...
h5 {[%clk 0:00:15.9]} 28. c4 {[%clk 0:01:50.9]} 28... b6 {[%clk 0:00:15.1]} 29.
Re4 {[%clk 0:01:47.1]} 29... Ng6 {[%clk 0:00:13.5]} 30. Re8+ {[%clk 0:01:36.9]}
30... Kh7 {[%clk 0:00:11.6]} 31. Rxd8 {[%clk 0:01:36.5]} 31... Qxd8 {[%clk
0:00:12.5]} 32. Qb3 {[%clk 0:01:32.5]} 32... Nf4 {[%clk 0:00:10.8]} 33. Qc2+
{[%clk 0:01:32]} 33... g6 {[%clk 0:00:08.1]} 34. Qe4 {[%clk 0:01:31.6]} 34...
Qd6 {[%clk 0:00:08.6]} 35. b3 {[%clk 0:01:30.2]} 35... f5 {[%clk 0:00:08.1]} 36.
Qe5 {[%clk 0:01:28.1]} 36... Qxe5 {[%clk 0:00:04.9]} 37. Nxe5 {[%clk 0:01:27.6]}
37... Ne2+ {[%clk 0:00:04.8]} 38. Kf1 {[%clk 0:01:26.7]} 38... Nd4 {[%clk
0:00:05.2]} 39. Nd7 {[%clk 0:01:22]} 39... Nxb3 {[%clk 0:00:04.9]} 40. Nxb6
{[%clk 0:01:22.6]} 40... Nc5 {[%clk 0:00:05.6]} 41. Ke2 {[%clk 0:01:14.4]} 41...
Kg7 {[%clk 0:00:06]} 42. Ke3 {[%clk 0:01:14.6]} 42... Kf6 {[%clk 0:00:06.3]} 43.
Kd4 {[%clk 0:01:14.5]} 43... Nb7 {[%clk 0:00:04.4]} 44. c5 {[%clk 0:01:14]} 1-0

[Event "*** Titled Tuesday Blitz"]
[Site "Chess.com"]
[Date "2021.03.30"]
[Round "4"]
[White "exoticprincess"]
[Black "olksuna"]
[Result "1-0"]
[WhiteElo "2861"]
[BlackElo "2672"]
[TimeControl "180+1"]
[EndTime "10:38:38 PDT"]
[Termination "exoticprincess won on time"]

1. d4 {[%clk 0:03:00.9]} 1... Nf6 {[%clk 0:02:59.1]} 2. Nc3 {[%clk 0:03:00.2]}
2... d5 {[%clk 0:02:59]} 3. Bf4 {[%clk 0:03:00.2]} 3... a6 {[%clk 0:02:58.9]} 4.
e3 {[%clk 0:02:59.7]} 4... e6 {[%clk 0:02:59.2]} 5. a3 {[%clk 0:02:56.8]} 5...
c5 {[%clk 0:02:58]} 6. h3 {[%clk 0:02:56]} 6... Nc6 {[%clk 0:02:57.6]} 7. Nf3
{[%clk 0:02:56.2]} 7... b5 {[%clk 0:02:56.1]} 8. Bd3 {[%clk 0:02:55.3]} 8... Bb7
{[%clk 0:02:55.3]} 9. O-O {[%clk 0:02:54.6]} 9... c4 {[%clk 0:02:55.2]} 10. Be2
{[%clk 0:02:54.1]} 10... Be7 {[%clk 0:02:49.3]} 11. Re1 {[%clk 0:02:53.9]} 11...
O-O {[%clk 0:02:48.8]} 12. Ne5 {[%clk 0:02:50.5]} 12... Nxe5 {[%clk 0:02:42.3]}
13. Bxe5 {[%clk 0:02:51.4]} 13... Nd7 {[%clk 0:02:39.9]} 14. Bg3 {[%clk
0:02:50.8]} 14... Qb6 {[%clk 0:02:26.5]} 15. Qd2 {[%clk 0:02:49.8]} 15... a5
{[%clk 0:02:16.8]} 16. Bf3 {[%clk 0:02:22]} 16... b4 {[%clk 0:02:14.8]} 17. Ne2
{[%clk 0:02:21.2]} 17... Rfc8 {[%clk 0:02:09.6]} 18. c3 {[%clk 0:02:20]} 18...
bxa3 {[%clk 0:02:07.7]} 19. bxa3 {[%clk 0:02:19.4]} 19... Bd6 {[%clk 0:02:00.6]}
20. Reb1 {[%clk 0:02:14.3]} 20... Bxg3 {[%clk 0:01:35]} 21. Rxb6 {[%clk
0:02:10.6]} 21... Bxf2+ {[%clk 0:01:35.5]} 22. Kxf2 {[%clk 0:02:10.3]} 22...
Nxb6 {[%clk 0:01:36.4]} 23. Rb1 {[%clk 0:02:08.1]} 23... Ra6 {[%clk 0:01:36.5]}
24. g4 {[%clk 0:01:57.1]} 24... Bc6 {[%clk 0:01:36.3]} 25. g5 {[%clk 0:01:56.5]}
25... Ba4 {[%clk 0:01:35.3]} 26. Nf4 {[%clk 0:01:54.6]} 26... Bb3 {[%clk
0:01:33]} 27. h4 {[%clk 0:01:54.7]} 27... Nd7 {[%clk 0:01:26.8]} 28. h5 {[%clk
0:01:53.4]} 28... Re8 {[%clk 0:01:19.5]} 29. g6 {[%clk 0:01:41.3]} 29... fxg6
{[%clk 0:01:16.8]} 30. hxg6 {[%clk 0:01:42.2]} 30... h6 {[%clk 0:01:17.4]} 31.
e4 {[%clk 0:01:35.9]} 31... dxe4 {[%clk 0:01:08.1]} 32. Bxe4 {[%clk 0:01:36.8]}
32... Rf8 {[%clk 0:01:08.3]} 33. Kg3 {[%clk 0:01:33.8]} 33... Rd6 {[%clk
0:00:54.9]} 34. Qe3 {[%clk 0:01:31.3]} 34... Kh8 {[%clk 0:00:44.2]} 35. Rh1
{[%clk 0:01:25.1]} 35... e5 {[%clk 0:00:42.3]} 36. Rxh6+ {[%clk 0:01:11.9]}
36... gxh6 {[%clk 0:00:39.7]} 37. Ne6 {[%clk 0:01:03.8]} 37... Rf4 {[%clk
0:00:22.9]} 38. dxe5 {[%clk 0:01:02.3]} 38... Rxe6 {[%clk 0:00:06.5]} 39. Qxf4
{[%clk 0:01:01.5]} 1-0

[Event "*** Titled Tuesday Blitz"]
[Site "Chess.com"]
[Date "2021.03.30"]
[Round "4"]
[White "Ermito2020"]
[Black "youngKID"]
[Result "0-1"]
[WhiteElo "2513"]
[BlackElo "2745"]
[TimeControl "180+1"]
[EndTime "10:38:38 PDT"]
[Termination "youngKID won by resignation"]

1. e4 {[%clk 0:03:00.9]} 1... c5 {[%clk 0:02:59.7]} 2. Nf3 {[%clk 0:03:00.5]}
2... Nc6 {[%clk 0:02:59.5]} 3. Bb5 {[%clk 0:02:59.8]} 3... g6 {[%clk 0:02:59.4]}
4. O-O {[%clk 0:02:59.6]} 4... Bg7 {[%clk 0:02:59.7]} 5. Re1 {[%clk 0:02:59.8]}
5... Nf6 {[%clk 0:02:57.9]} 6. c3 {[%clk 0:03:00.1]} 6... O-O {[%clk 0:02:56.4]}
7. d4 {[%clk 0:03:00.4]} 7... d5 {[%clk 0:02:56.6]} 8. e5 {[%clk 0:03:00.3]}
8... Ne4 {[%clk 0:02:56.7]} 9. Nbd2 {[%clk 0:02:51.8]} 9... cxd4 {[%clk
0:02:52.6]} 10. cxd4 {[%clk 0:02:47.9]} 10... Bg4 {[%clk 0:02:51.1]} 11. Bxc6
{[%clk 0:02:38.7]} 11... bxc6 {[%clk 0:02:49.6]} 12. h3 {[%clk 0:02:38.1]} 12...
Bxf3 {[%clk 0:02:47.4]} 13. Qxf3 {[%clk 0:02:36]} 13... Ng5 {[%clk 0:02:46]} 14.
Qg3 {[%clk 0:02:33.9]} 14... Ne6 {[%clk 0:02:45.6]} 15. Nb3 {[%clk 0:02:34]}
15... a5 {[%clk 0:02:42.5]} 16. Be3 {[%clk 0:02:24.7]} 16... Qb8 {[%clk
0:02:34.9]} 17. Rab1 {[%clk 0:02:17.6]} 17... a4 {[%clk 0:02:34.2]} 18. Nd2
{[%clk 0:02:17.3]} 18... c5 {[%clk 0:02:25.7]} 19. dxc5 {[%clk 0:02:11.1]} 19...
Bxe5 {[%clk 0:02:24.4]} 20. Qf3 {[%clk 0:02:09.3]} 20... Rd8 {[%clk 0:02:19.4]}
21. Rec1 {[%clk 0:01:55.7]} 21... Kg7 {[%clk 0:02:09.2]} 22. Nf1 {[%clk
0:01:27.9]} 22... Ra6 {[%clk 0:01:56.6]} 23. Ng3 {[%clk 0:01:11.1]} 23... Bxb2
{[%clk 0:01:23.7]} 24. Rc2 {[%clk 0:01:05]} 24... a3 {[%clk 0:01:23.7]} 25. Qg4
{[%clk 0:00:46.6]} 25... Qe5 {[%clk 0:01:20.3]} 26. c6 {[%clk 0:00:41.9]} 26...
Rc8 {[%clk 0:01:16.1]} 27. Qe2 {[%clk 0:00:41.5]} 27... Raxc6 {[%clk 0:00:52.7]}
28. Rcxb2 {[%clk 0:00:40.7]} 28... axb2 {[%clk 0:00:52.6]} 29. Bh6+ {[%clk
0:00:40.4]} 29... Kxh6 {[%clk 0:00:53.1]} 30. Qxe5 {[%clk 0:00:40]} 30... Rc1+
{[%clk 0:00:53.3]} 31. Kh2 {[%clk 0:00:40]} 31... Rxb1 {[%clk 0:00:53.8]} 32. h4
{[%clk 0:00:19.9]} 32... Rh1+ {[%clk 0:00:48.3]} 33. Nxh1 {[%clk 0:00:19.2]}
33... b1=Q {[%clk 0:00:49.2]} 34. Ng3 {[%clk 0:00:19.7]} 34... Qb4 {[%clk
0:00:44.9]} 35. Qe3+ {[%clk 0:00:18.7]} 35... Qf4 {[%clk 0:00:44.2]} 36. Qe5
{[%clk 0:00:19.2]} 36... Qxe5 {[%clk 0:00:44.1]} 0-1